fUSD/lending_fUSD_20240214
["ID","MTS","AMOUNT","RATE_DAILY","PERIOD"]
[314001004,1707919874576,-788.65,0.00037808,2]
[314001005,1707919874585,-7494.55,0.00037808,2]
[314001006,1707919874595,-500.0,0.00037808,2]
[314001007,1707919874604,-567.37,0.00037808,2]
[314001008,1707919874614,-500.0,0.00037808,2]
[314001009,1707919874623,-2976.44,0.00037808,2]
[314001010,1707919874632,-731.57,0.00037808,2]
[314001011,1707919874641,-1813.77,0.00037808,7]
[314001012,1707919874650,-802.93,0.00037808,2]
[314001013,1707919874659,-500.0,0.00037808,2]
[314001014,1707919874668,-500.0,0.00037808,2]
[314001015,1707919874678,-552.41,0.00037808,2]
[314001016,1707919874687,-500.0,0.00037808,2]
[314001017,1707919874696,-578.94,0.00037808,2]
[314001018,1707919874705,-500.0,0.00037808,2]
[314001019,1707919874714,-1069.4,0.00037808,2]
[314001020,1707919874724,-953.33,0.00037808,2]
[314001021,1707919874733,-1911.34,0.00037808,2]
[314001022,1707919874743,-1999.14,0.00037808,2]
[314001023,1707919874753,-3204.8,0.00037808,2]
[314001024,1707919874762,-547.72,0.00037808,2]
[314001025,1707919874772,-501.74,0.00037808,2]
[314001026,1707919874781,-1089.7,0.00037808,2]
[314001027,1707919874789,-734.97,0.00037808,2]
[314001028,1707919874798,-500.0,0.00037808,2]
[314001029,1707919874807,-500.0,0.00037808,2]
[314001030,1707919874817,-881.11,0.00037808,2]
[314001031,1707919874826,-2920.53,0.00037808,2]
[314001032,1707919874834,-500.0,0.00037808,2]
[314001033,1707919874843,-1003.7,0.00037808,2]
[314001034,1707919874852,-780.27,0.00037808,2]
[314001035,1707919874861,-2201.32,0.00037808,2]
[314001036,1707919874870,-500.0,0.00037808,2]
[314001037,1707919874879,-500.0,0.00037808,2]
[314001038,1707919874888,-500.0,0.00037808,2]
[314001039,1707919874898,-827.67,0.00037808,2]
[314001040,1707919874906,-1841.92,0.00037808,2]
[314001041,1707919874915,-500.0,0.00037808,2]
[314001042,1707919874924,-8394.74,0.00037808,2]
[314001043,1707919874933,-3503.35,0.00037808,2]
[314001044,1707919874942,-599.15,0.00037808,2]
[314001045,1707919874954,-5433.39,0.00037808,2]
[314001046,1707919874964,-753.07,0.00037808,2]
[314001047,1707919874973,-508.66,0.00037808,2]
[314001048,1707919874982,-818.9,0.00037808,2]
[314001049,1707919874992,-500.0,0.00037808,2]
[314001050,1707919875001,-775.37,0.00037808,2]
[314001051,1707919875010,-3035.27,0.00037808,2]
[314001052,1707919875020,-500.0,0.00037808,2]
[314001053,1707919875030,-500.0,0.00037808,2]
[314001054,1707919875040,-500.0,0.00037808,2]
[314001055,1707919875050,-1167.66,0.00037808,2]
[314001056,1707919875058,-500.0,0.00037808,2]
[314001057,1707919875068,-500.0,0.00037808,2]
[314001058,1707919875077,-500.0,0.00037808,2]
[314001059,1707919875086,-4046.5,0.00037808,2]
[314001060,1707919875094,-500.0,0.00037808,2]
[314001061,1707919875103,-1122.13,0.00037808,2]
[314001062,1707919875112,-603.11,0.00037808,2]
[314001063,1707919875121,-10290.46,0.00037808,2]
[314001064,1707919875131,-500.0,0.00037808,2]
[314001065,1707919875140,-2573.1,0.00037808,2]
[314001066,1707919875149,-500.0,0.00037808,2]
[314001067,1707919875158,-500.0,0.00037808,2]
[314001068,1707919875168,-1975.43,0.00037808,2]
[314001069,1707919875178,-500.0,0.00037808,2]
[314001070,1707919875189,-500.0,0.00037808,2]
[314001071,1707919875200,-500.0,0.00037808,2]
[314001072,1707919875209,-706.35,0.00037808,2]
[314001073,1707919875219,-1127.38,0.00037808,2]
[314001074,1707919875229,-500.0,0.00037808,2]
[314001075,1707919875239,-562.45,0.00037808,2]
[314001076,1707919875250,-17798.04,0.00037808,2]
[314001077,1707919875259,-3212.99,0.00037808,2]
[314001078,1707919875268,-2886.82,0.00037808,2]
[314001079,1707919875278,-1450.42,0.00037808,2]
[314001080,1707919875287,-713.84,0.00037808,2]
[314001081,1707919875296,-2733.78,0.00037808,2]
[314001082,1707919875305,-4395.09,0.00037808,7]
[314001083,1707919875314,-1006.34,0.00037808,2]
[314001084,1707919875323,-500.0,0.00037808,2]
[314001085,1707919875333,-500.0,0.00037808,2]
[314001086,1707919875342,-558.37,0.00037808,2]
[314001087,1707919875352,-684.42,0.00037808,2]
[314001088,1707919875364,-670.37,0.00037808,2]
[314001089,1707919875374,-500.0,0.00037808,2]
[314001090,1707919875383,-500.0,0.00037808,2]
[314001091,1707919875393,-2669.96,0.00037808,2]
[314001092,1707919875402,-613.62,0.00037808,2]
[314001093,1707919875411,-500.0,0.00037808,2]
[314001094,1707919875421,-1534.54,0.00037808,2]
[314001095,1707919875430,-578.29,0.00037808,2]
[314001096,1707919875440,-500.0,0.00037808,2]
[314001097,1707919875449,-1036.48,0.00037808,2]
[314001098,1707919875459,-500.0,0.00037808,2]
[314001099,1707919875469,-500.0,0.00037808,2]
[314001100,1707919875478,-674.53,0.00037808,2]
[314001101,1707919875488,-500.0,0.00037808,2]
[314001102,1707919875499,-594.16,0.00037808,2]
[314001103,1707919875508,-881.08,0.00037808,2]
[314001104,1707919875518,-1239.77,0.00037808,2]
[314001105,1707919875527,-1095.34,0.00037808,2]
[314001106,1707919875537,-500.0,0.00037808,2]
[314001107,1707919875546,-2412.01,0.00037808,2]
[314001108,1707919875555,-500.0,0.00037808,2]
[314001109,1707919875564,-606.93,0.00037808,2]
[314001110,1707919875574,-630.62,0.00037808,2]
[314001111,1707919875583,-500.0,0.00037808,2]
[314001112,1707919875593,-1217.79,0.00037808,2]
[314001113,1707919875602,-4591.8,0.00037808,2]
[314001114,1707919875612,-999.32,0.00037808,2]
[314001115,1707919875621,-3354.32,0.00037808,2]
[314001116,1707919875630,-4861.03,0.00037808,2]
[314001117,1707919875639,-521.04,0.00037808,2]
[314001118,1707919875648,-1085.93,0.00037808,2]
[314001119,1707919875657,-946.08,0.00037808,2]
[314001120,1707919875666,-1052.19,0.00037808,2]
[314001121,1707919875675,-945.67,0.00037808,2]
[314001122,1707919875684,-523.62,0.00037808,2]
[314001123,1707919875693,-331.65115417,0.00037808,2]
[314001124,1707919875703,-771.12,0.00037808,2]
[314001125,1707919875712,-837.15,0.00037808,2]
[314001126,1707919875721,-11300.89,0.00037808,2]
[314001127,1707919875731,-500.0,0.00037808,2]
[314001128,1707919875740,-10336.64,0.00037808,2]
[314001129,1707919875750,-925.14,0.00037808,2]
[314001130,1707919875759,-500.0,0.00037808,2]
[314001131,1707919875769,-645.36,0.00037808,2]
[314001132,1707919875778,-500.0,0.00037808,2]
[314001133,1707919875788,-2369.18,0.00037808,2]
[314001134,1707919875798,-500.0,0.00037808,2]
[314001135,1707919875808,-610.83,0.00037808,2]
[314001136,1707919875817,-6266.55,0.00037808,2]
[314001137,1707919875826,-949.36,0.00037808,2]
[314001138,1707919875836,-841.34,0.00037808,2]
[314001139,1707919875845,-3603.61,0.00037808,2]
[314001140,1707919875854,-9338.45,0.00037808,2]
[314001141,1707919875864,-1469.3,0.00037808,2]
[314001142,1707919875873,-1040.93,0.00037808,2]
[314001143,1707919875882,-500.0,0.00037808,2]
[314001144,1707919875892,-500.0,0.00037808,2]
[314001145,1707919875901,-913.16,0.00037808,2]
[314001146,1707919875911,-860.7,0.00037808,2]
[314001147,1707919875920,-500.0,0.00037808,2]
[314001148,1707919875930,-699.89,0.00037808,2]
[314001149,1707919875940,-577.91,0.00037808,2]
[314001150,1707919875952,-500.0,0.00037808,2]
[314001151,1707919875962,-3328.13,0.00037808,2]
[314001152,1707919875971,-775.14,0.00037808,2]
[314001153,1707919875980,-500.0,0.00037808,2]
[314001154,1707919875991,-775.14,0.00037808,2]
[314001155,1707919876001,-500.0,0.00037808,2]
[314001156,1707919876010,-890.36,0.00037808,2]
[314001157,1707919876021,-1260.25,0.00037808,2]
[314001158,1707919876033,-868.71,0.00037808,2]
[314001159,1707919876045,-500.0,0.00037808,2]
[314001160,1707919876055,-2305.66,0.00037808,2]
[314001161,1707919876065,-1199.52,0.00037808,2]
[314001162,1707919876075,-863.13,0.00037808,2]
[314001163,1707919876084,-898.34,0.00037808,2]
[314001164,1707919876093,-769.11,0.00037808,2]
[314001165,1707919876102,-909.31,0.00037808,2]
[314001166,1707919876112,-811.27,0.00037808,2]
[314001167,1707919876121,-1548.56,0.00037808,2]
[314001168,1707919876130,-500.0,0.00037808,2]
[314001169,1707919876139,-816.72,0.00037808,2]
[314001170,1707919876149,-688.03,0.00037808,2]
[314001171,1707919876159,-931.31,0.00037808,2]
[314001172,1707919876168,-607.99,0.00037808,2]
[314001173,1707919876178,-1403.05,0.00037808,2]
[314001174,1707919876187,-2682.92,0.00037808,2]
[314001175,1707919876197,-500.0,0.00037808,2]
[314001176,1707919876206,-1109.86,0.00037808,2]
[314001177,1707919876215,-500.0,0.00037808,2]
[314001178,1707919876224,-2049.89,0.00037808,2]
[314001179,1707919876233,-2269.21,0.00037808,2]
[314001180,1707919876243,-569.93,0.00037808,2]
[314001181,1707919876252,-500.0,0.00037808,2]
[314001182,1707919876262,-500.0,0.00037808,2]
[314001183,1707919876273,-3181.24941058,0.00037808,2]
[314001184,1707919876312,-404.39058942,0.00037808,2]
[314001185,1707919876321,-907.59,0.00037808,2]
[314001186,1707919876331,-500.0,0.00037808,2]
[314001187,1707919876341,-500.0,0.00037808,2]
[314001188,1707919876351,-2666.8,0.00037808,2]
[314001189,1707919876361,-821.08,0.00037808,2]
[314001190,1707919876371,-1099.8,0.00037808,2]
[314001191,1707919876380,-185.01984951,0.00037808,2]
[314001192,1707919876392,-433.98015049,0.00037808,2]
[314001193,1707919876402,-7.91103516,0.00037808,2]
[314001194,1707919876482,-0.0779987,0.00037808,2]
[314001195,1707919876494,-1764.23096614,0.00037808,2]
[314001196,1707919876503,-531.49,0.00037808,2]
[314001197,1707919876512,-1406.82,0.00037808,2]
[314001198,1707919876522,-500.0,0.00037808,2]
[314001199,1707919876531,-500.0,0.00037808,2]
[314001200,1707919876541,-1445.56,0.00037808,2]
[314001201,1707919876551,-945.51,0.00037808,2]
[314001202,1707919876560,-1210.43,0.00037808,2]
[314001203,1707919876570,-500.0,0.00037808,2]
[314001204,1707919876580,-1892.42,0.00037808,2]
[314001205,1707919876589,-741.08,0.00037808,2]
[314001206,1707919876599,-805.37,0.00037808,2]
[314001207,1707919876609,-825.95,0.00037808,2]
[314001208,1707919876618,-886.87,0.00037808,2]
[314001209,1707919876627,-500.0,0.00037808,2]
[314001210,1707919876636,-500.0,0.00037808,2]
[314001211,1707919876645,-500.0,0.00037808,2]
[314001212,1707919876654,-985.11,0.00037808,2]
[314001213,1707919876664,-500.0,0.00037808,2]
[314001214,1707919876673,-829.54,0.00037808,2]
[314001215,1707919876683,-1430.37,0.00037808,2]
[314001216,1707919876692,-500.0,0.00037808,2]
[314001217,1707919876702,-3730.94,0.00037808,2]
[314001218,1707919876712,-736.85,0.00037808,2]
[314001219,1707919876721,-500.0,0.00037808,2]
[314001220,1707919876730,-3052.69,0.00037808,2]
[314001221,1707919876740,-500.0,0.00037808,2]
[314001222,1707919876751,-500.0,0.00037808,2]
[314001223,1707919876760,-500.0,0.00037808,2]
[314001224,1707919876770,-1361.46,0.00037808,2]
[314001225,1707919876779,-4205.66,0.00037808,2]
[314001226,1707919876789,-690.22,0.00037808,2]
[314001227,1707919876798,-1019.96,0.00037808,2]
[314001228,1707919876807,-1174.78,0.00037808,2]
[314001229,1707919876817,-209.805955,0.00037808,14]
[314001230,1707919876826,-200.0,0.00037838,2]
[314001231,1707919876835,-871.39411206,0.00037845,2]
[314001232,1707919876844,-53930.12252689,0.0003788,2]
[314001233,1707919876854,-200.0,0.00037898,3]
[314001234,1707919876863,-800.0,0.00037898,5]
[314001235,1707919876872,-200.0,0.00037898,10]
[314001236,1707919876883,-150.0,0.00037899,30]
[314001237,1707919876892,-150.0,0.00037899,30]
[314001238,1707919876902,-150.0,0.00037899,2]
[314001239,1707919876911,-23057.38439334,0.000379,15]
[314001240,1707919876924,-690.84238113,0.000379,15]
[314001241,1707919878073,-741.78,0.00036712,2]
[314001242,1707919878083,-500.0,0.00036712,2]
[314001243,1707919878093,-741.78,0.00036986,2]
[314001244,1707919878102,-500.0,0.00036986,2]
[314001245,1707919878111,-500.0,0.0003726,2]
[314001246,1707919878121,-741.78,0.0003726,2]
[314001247,1707919878130,-500.0,0.0003726,2]
[314001248,1707919878140,-500.0,0.00037534,2]
[314001249,1707919878149,-500.0,0.00037534,2]
[314001250,1707919878158,-741.78,0.00037534,2]
[314001251,1707919878167,-500.0,0.00037534,2]
[314001252,1707919878177,-500.0,0.00037808,2]
[314001253,1707919878186,-322.75752518,0.00037808,2]
[314001254,1707919878195,-741.78,0.00037808,2]
[314001255,1707919878205,-500.0,0.00037808,2]
[314001256,1707919878214,-3823.65891711,0.000379,15]
[314001257,1707919878226,-1050.89704488,0.000379,15]
[314001258,1707919878237,-3654.63137778,0.000379,15]
[314001259,1707919878247,-150.0,0.000379,27]
[314001260,1707919878257,-1957.36906632,0.000379,3]
[314001261,1707919878301,-12930.8805,0.000379,3]
[314001262,1707919878323,-500.0,0.00036712,2]
[314001263,1707919878332,-2091.36739,0.000379,3]
[314001264,1707919878871,-351.42827741,0.00036986,2]
[314001265,1707919878882,-148.57172259,0.00036986,2]
[314001266,1707919878891,-117.43827741,0.0003726,2]
[314001267,1707919878981,-382.56172259,0.0003726,2]
[314001268,1707919878990,-215.04825676,0.00037534,2]
[314001269,1707919879002,-284.95174324,0.00037534,2]
[314001270,1707919879012,-900.08799491,0.000379,3]
[314001271,1707919879036,-500.0,0.00037808,2]
[314001272,1707919879046,-7781.37310991,0.000379,3]
[314001273,1707919879345,-209133.21858181,0.000379,3]
[314001274,1707919879674,-586.05266528,0.00036711,4]
[314001275,1707919879683,-13335.72233472,0.000379,3]
[314001276,1707919879695,-1348.1,0.000379,3]
[314001277,1707919879706,-7361.97879042,0.000379,3]
[314001278,1707919879717,-395028.27125791,0.000379,3]
[314001279,1707919879728,-302.20059929,0.00037928,2]
[314001280,1707919879738,-150.0,0.00037951,2]
[314001281,1707919879748,-212.57013512,0.00037982,2]
[314001282,1707919879757,-214.52600523,0.00037982,2]
[314001283,1707919879766,-100000.0,0.00038,18]
[314001284,1707919879775,-477.69145701,0.00038,2]
[314001285,1707919879784,-213.91073973,0.00038,4]
[314001286,1707919879793,-854.14168409,0.00038,2]
[314001287,1707919879802,-150.0,0.00038028,2]
[314001288,1707919879811,-40886.0,0.00038056,20]
[314001289,1707919879820,-2759.0,0.00038056,20]
[314001290,1707919879829,-568.0,0.00038056,20]
[314001291,1707919879839,-300.0,0.00038066,2]
[314001292,1707919879848,-150.0,0.00038081,30]
[314001293,1707919879857,-150.0,0.00038081,30]
[314001294,1707919879867,-500.0,0.00038082,2]
[314001295,1707919879876,-500.0,0.00038082,2]
[314001296,1707919879885,-327.71504627,0.00038082,2]
[314001297,1707919879894,-589.33226051,0.00038082,2]
[314001298,1707919879903,-500.0,0.00038082,2]
[314001299,1707919879911,-489.79523417,0.00038082,2]
[314001300,1707919879921,-250.0,0.00038082,2]
[314001301,1707919879930,-500.0,0.00038082,2]
[314001302,1707919879940,-500.0,0.00038082,2]
[314001303,1707919879952,-500.0,0.00038082,2]
[314001304,1707919879962,-500.0,0.00038082,2]
[314001305,1707919879971,-500.0,0.00038082,2]
[314001306,1707919879980,-500.0,0.00038082,2]
[314001307,1707919879991,-636.47114974,0.00038082,2]
[314001308,1707919880001,-500.0,0.00038082,2]
[314001309,1707919880011,-756.06,0.00038082,2]
[314001310,1707919880021,-500.0,0.00038082,2]
[314001311,1707919880030,-500.0,0.00038082,2]
[314001312,1707919880040,-575.44,0.00038082,2]
[314001313,1707919880049,-500.0,0.00038082,2]
[314001314,1707919880059,-220.80235523,0.00038082,2]
[314001315,1707919880072,-279.19764477,0.00038082,2]
[314001316,1707919880081,-35.07828444,0.00038082,2]
[314001317,1707919880094,-464.92171556,0.00038082,2]
[314001318,1707919880104,-951.22,0.00038082,2]
[314001319,1707919880114,-2.72034444,0.00038082,2]
[314001320,1707919880230,-532.01965556,0.00038082,2]
[314001321,1707919880240,-500.0,0.00038082,2]
[314001322,1707919880251,-500.0,0.00038082,2]
[314001323,1707919880261,-500.0,0.00038082,2]
[314001324,1707919880271,-557.28034444,0.00038082,2]
[314001325,1707919880285,-347.95965556,0.00038082,2]
[314001326,1707919880295,-529.87,0.00038082,2]
[314001327,1707919880304,-308.99414465,0.00038082,2]
[314001328,1707919880316,-199.14585535,0.00038082,2]
[314001329,1707919880326,-500.0,0.00038082,2]
[314001330,1707919880335,-790.85781278,0.00038082,2]
[314001331,1707919880352,-242.04218722,0.00038082,2]
[314001332,1707919880362,-500.0,0.00038082,2]
[314001333,1707919880371,-500.0,0.00038082,2]
[314001334,1707919880380,-142.96681888,0.00038082,2]
[314001341,1707920795145,-176.01545646,0.00024735,2]
[314001342,1707920840101,-155.00619398,0.00024635,2]
[314001343,1707920840121,-339.61953931,0.0002473,2]
[314001344,1707920840142,-282.85620668,0.00024731,2]
[314001345,1707920840162,-163.17920846,0.00024731,2]
[314001346,1707920840185,-436.19062659,0.00024731,2]
[314001347,1707920840205,-632.53888103,0.00024731,2]
[314001348,1707920840229,-2508.32504624,0.00024731,2]
[314001349,1707920958571,170.23,0.00019955,2]
[314001350,1707920959096,-199.83,0.00023041,2]
[314001351,1707920959116,-155.0,0.00024635,2]
[314001352,1707920959136,-402.83821741,0.00024635,2]
[314001353,1707920959156,-1562.1869105,0.00024635,2]
[314001375,1707921031680,-150.38261825,0.0002461,2]
[314001377,1707921031690,-436.19062659,0.00024626,2]
[314001379,1707921031699,-402.83821741,0.00024626,2]
[314001380,1707921031708,-626.56955567,0.00024626,2]
[314001381,1707921031718,-528.17865243,0.00024627,2]
[314001383,1707921031729,-491.53642918,0.00024627,2]
[314001385,1707921031742,-1712.57262717,0.00024627,2]
[314001389,1707921031792,-514.09738186,0.00024627,2]
[314001390,1707921031805,-1017.50887766,0.00024627,2]
[314001391,1707921031850,-314.19872509,0.00024627,2]
[314001392,1707921031861,-978.38243839,0.00024627,2]
[314001393,1707921031960,-516.56292,0.00024627,2]
[314001394,1707921032033,-402.91445258,0.00024625,2]
[314001395,1707921032043,-114.83092148,0.00024627,2]
[314001426,1707921037832,-1379.55653244,0.00024625,2]
[314001427,1707921037841,-155.0,0.00024625,2]
[314001428,1707921037852,-10790.93464816,0.00024626,2]
[314001429,1707921037889,-22748.52950192,0.00024626,2]
[314001430,1707921037899,-37643.1151469,0.00024627,2]
[314001431,1707921037908,-212.96144381,0.00024628,2]
[314001432,1707921037917,-2636.57379953,0.00024628,2]
[314001433,1707921037927,-155.0,0.00024628,2]
[314001434,1707921037937,-155.0,0.00024628,2]
[314001435,1707921037948,-24484.38826566,0.00024628,2]
[314001436,1707921037959,-19105.50734337,0.00024628,2]
[314001437,1707921037968,-300.0,0.00024629,2]
[314001438,1707921037979,-150.0,0.00024629,2]
[314001439,1707921037988,-3047.06990534,0.00024629,2]
[314001440,1707921037998,-162.72185534,0.00024629,2]
[314001441,1707921038008,-5475.35088695,0.00024629,2]
[314001442,1707921038018,-1233.48725567,0.00024629,2]
[314001443,1707921038028,-364.58258095,0.0002463,2]
[314001444,1707921038038,-6476.11087818,0.0002463,2]
[314001445,1707921038048,-420.51851356,0.0002463,2]
[314001446,1707921038058,-159.75471014,0.0002463,2]
[314001447,1707921038069,-155.0,0.0002463,2]
[314001448,1707921038078,-375.96361041,0.0002463,2]
[314001449,1707921038087,-4869.80400071,0.0002463,2]
[314001450,1707921038097,-500.0,0.00024631,2]
[314001451,1707921038106,-2796.72015372,0.00024631,2]
[314001452,1707921038115,-5548.25860248,0.00024631,2]
[314001453,1707921038124,-248.13544378,0.00024631,2]
[314001454,1707921038134,-3646.45275042,0.00024631,2]
[314001455,1707921038144,-155.0,0.00024632,2]
[314001456,1707921038154,-155.0,0.00024632,2]
[314001457,1707921038164,-264.96909026,0.00024632,2]
[314001458,1707921038174,-945.90283649,0.00024632,2]
[314001459,1707921038182,-4270.20264567,0.00024633,2]
[314001460,1707921038192,-155.0,0.00024635,2]
[314001461,1707921038201,-359.87229622,0.00024635,2]
[314001462,1707921038211,-236.12744989,0.00024635,2]
[314001463,1707921038221,-613.41685198,0.00024635,2]
[314001464,1707921038232,-155.0,0.00024635,2]
[314001465,1707921038242,-353.0,0.0002464,2]
[314001466,1707921038253,-200.6536,0.00024645,2]
[314001467,1707921038264,-280.83602721,0.00024722,2]
[314001468,1707921038278,-73196.2037267,0.00024723,2]
[314001469,1707921038287,-155.0,0.00024728,2]
[314001470,1707921038296,-1408.55099016,0.00024728,2]
[314001471,1707921038306,-221.60779423,0.00024728,2]
[314001472,1707921038316,-489.67573697,0.00024728,2]
[314001473,1707921038325,-155.0,0.00024728,2]
[314001474,1707921038335,-155.0,0.00024728,2]
[314001475,1707921038344,-366.06042699,0.00024734,2]
[314001476,1707921038353,-1207.66992308,0.00024742,2]
[314001477,1707921038363,-7406.63206314,0.00024758,2]
[314001478,1707921038372,-1070.86338959,0.00024778,2]
[314001479,1707921038382,-310.0,0.00024786,2]
[314001480,1707921038391,-1250.0,0.00025,3]
[314001481,1707921038401,-431.14,0.00025144,2]
[314001482,1707921038410,-155.0,0.0002515,2]
[314001483,1707921038419,-573.8,0.00025154,2]
[314001484,1707921038429,-176.94,0.00025154,2]
[314001485,1707921038439,-237.24,0.00025154,2]
[314001486,1707921038449,-199.83,0.00025304,2]
[314001487,1707921038460,-300.0,0.00026692,2]
[314001488,1707921038470,-210.0,0.00027092,2]
[314001489,1707921038484,-480.00478813,0.000274,2]
[314001490,1707921038495,-199.83,0.00027568,2]
[314001491,1707921038505,-155.00619397,0.00027698,2]
[314001492,1707921038516,-176.94,0.00027894,2]
[314001493,1707921038526,-282.62825206,0.00028193,2]
[314001494,1707921038536,-165.09,0.00028263,2]
[314001495,1707921038547,-632.02172093,0.00028478,2]
[314001496,1707921038557,-1262.8216172,0.00028478,2]
[314001497,1707921038567,-339.33158325,0.00028478,2]
[314001498,1707921038577,-163.03330282,0.00028478,2]
[314001499,1707921038588,-4594.83096539,0.00028479,2]
[314001500,1707921038598,-10934.46950663,0.0002848,7]
[314001501,1707921038607,-49613.08583237,0.0002848,7]
[314001502,1707921038617,-5545.43980881,0.0002848,7]
[314001503,1707921038627,-13027.11313924,0.0002848,7]
[314001504,1707921038637,-250.0,0.00028616,2]
[314001505,1707921038647,-500.0,0.00029186,2]
[314001506,1707921038656,-200.0,0.00029316,2]
[314001507,1707921038666,-169.26,0.00029325,2]
[314001508,1707921038676,-301.97,0.000294,2]
[314001509,1707921038685,-250.0,0.0002951,2]
[314001510,1707921038695,-500.0,0.00029601,2]
[314001511,1707921038704,-433.84,0.00029653,2]
[314001512,1707921038714,-250.0,0.00029779,2]
[314001513,1707921038723,-293.0,0.00029802,2]
[314001514,1707921038736,-199.83,0.00029832,2]
[314001515,1707921038745,-153.6,0.00029837,2]
[314001516,1707921038755,-153.6,0.00029957,2]
[314001517,1707921038764,-196.30739281,0.0003,4]
[314001518,1707921038774,-158.43548879,0.0003,4]
[314001519,1707921038783,-155.17744497,0.0003,4]
[314001520,1707921038793,-155.0,0.0003,2]
[314001521,1707921038802,-1000.0,0.0003,2]
[314001522,1707921038811,-153.6,0.00030076,2]
[314001523,1707921038820,-153.6,0.00030196,2]
[314001524,1707921038830,-153.6,0.00030316,2]
[314001525,1707921038839,-153.6,0.00030435,2]
[314001526,1707921038848,-153.44,0.00030442,2]
[314001527,1707921038857,-153.6,0.00030555,2]
[314001528,1707921038866,-153.6,0.00030674,2]
[314001529,1707921038875,-155.00619397,0.00030761,2]
[314001530,1707921038884,-153.6,0.00030794,2]
[314001531,1707921038893,-177.5,0.00030874,2]
[314001532,1707921038902,-153.6,0.00030914,2]
[314001533,1707921038911,-169.26,0.00030969,2]
[314001534,1707921038920,-1118.49254967,0.00031025,4]
[314001535,1707921038929,-184.80741242,0.00031025,4]
[314001536,1707921038939,-924.34150383,0.00031025,4]
[314001537,1707921038948,-153.6,0.00031033,2]
[314001538,1707921038957,-153.6,0.00031153,2]
[314001539,1707921038967,-153.6,0.00031272,2]
[314001540,1707921038977,-153.6,0.00031392,2]
[314001541,1707921038987,-162.47006204,0.00031498,4]
[314001542,1707921038997,-1000.0,0.00031976,2]
[314001543,1707921039006,-199.83,0.00032096,2]
[314001544,1707921039015,-652.23,0.00032232,2]
[314001545,1707921039025,-180.0,0.00032258,2]
[314001546,1707921039034,-165.45,0.00032472,2]
[314001547,1707921039043,-169.26,0.00032613,2]
[314001548,1707921039053,-236.0,0.00032782,2]
[314001549,1707921039064,-153.0,0.00032877,2]
[314001550,1707921039073,-198.01264144,0.00032999,4]
[314001551,1707921039082,-300.06928096,0.00033,4]
[314001552,1707921039092,-491.43130255,0.00033,4]
[314001553,1707921039101,-153.6,0.000335,2]
[314001554,1707921039111,-25682.0,0.000336,2]
[314001555,1707921039120,-2863.0,0.000336,2]
[314001556,1707921039129,-155.00619397,0.00033823,2]
[314001557,1707921039141,-275.01801863,0.00034,4]
[314001558,1707921039152,-605.36454383,0.00034197,4]
[314001559,1707921039163,-155.65193918,0.00034197,4]
[314001560,1707921039174,-169.26,0.00034257,2]
[314001561,1707921039183,-274.63919748,0.00034298,4]
[314001562,1707921039192,-199.83,0.0003436,2]
[314001563,1707921039203,-776.14782935,0.00034799,2]
[314001564,1707921039213,-776.14782933,0.00034799,2]
[314001565,1707921039221,-776.14782933,0.00034799,2]
[314001566,1707921039232,-776.14782933,0.00034799,2]
[314001567,1707921039242,-776.14782933,0.00034799,2]